bitfinex/quotes_ETHUSD_20240811
["timestamp","ask_amount","ask_price","bid_price","bid_amount"]
[1723382992057,2.6616,2630.0,2629.4,0.07605238]
[1723382992353,2.66177,2629.9,2629.5,0.04457005]
[1723382992673,2.66184,2629.8,2629.5,0.04457005]
[1723382992875,2.66176,2629.9,2629.5,0.04457005]
[1723382993086,5.32354,2629.9,2629.5,0.04457005]
[1723382993249,2.66176,2629.9,2629.5,0.04457005]
[1723382993866,5.32351,2629.9,2629.5,0.04457005]
[1723382994139,2.6616,2630.0,2629.5,0.37293884]
[1723382994377,2.6616,2630.0,2629.6,2.2704]
[1723382994681,9.95388857,2630.2,2629.6,2.2704]
[1723382994682,9.95388857,2630.2,2629.6,5.00836253]
[1723382994847,12.61533857,2630.2,2629.7,0.04441573]
[1723382995049,2.66145,2630.2,2629.7,2.70630573]
[1723382995240,2.66145,2630.2,2629.8,0.07604332]
[1723382995456,2.66145,2630.2,2629.9,0.04429557]
[1723382996385,2.66124,2630.4,2629.9,0.04429557]
[1723382997190,2.6613,2630.3,2629.8,0.0760433]
[1723382997481,2.6613,2630.3,2629.9,0.04425461]
[1723382997684,2.66124,2630.4,2629.9,0.04425461]
[1723382998048,2.66124,2630.4,2629.9,2.66168]
[1723382998360,2.66124,2630.4,2630.0,0.04415529]
[1723382998557,2.66135,2630.3,2630.0,0.04415529]
[1723382998890,2.66135,2630.3,2629.8,0.60223443]
[1723382999074,2.66135,2630.3,2630.1,0.04409693]
[1723382999269,2.66124,2630.4,2629.8,3.26401443]
[1723382999472,2.66124,2630.4,2629.9,2.70589367]
[1723383000385,2.66104,2630.6,2630.1,2.2704]
[1723383000692,7.29242857,2630.7,2629.9,0.04421367]
[1723383000868,2.66159,2630.0,2629.9,0.04421367]
[1723383001495,7.98477,2630.0,2629.9,0.04421367]
[1723383001665,8.53477,2630.0,2629.9,0.04421367]
[1723383001862,9.633397,2630.0,2629.9,0.04421367]
[1723383002551,12.084897,2630.0,2629.9,0.04421367]
[1723383002749,37.178077,2630.0,2629.9,3.67e-06]
[1723383002979,41.8904168,2630.0,2629.9,3.67e-06]
[1723383003163,2.66288,2628.8,2628.4,2.2704]
[1723383003686,12.40626857,2629.3,2628.1,2.66346]
[1723383003687,2.66301,2628.7,2628.1,2.66346]
[1723383003894,2.66301,2628.7,2628.1,5.32692]
[1723383004104,2.66301,2628.7,2628.2,2.6634]
[1723383004386,2.66301,2628.7,2628.3,0.532686]
[1723383004387,5.32596,2628.7,2628.3,0.532686]
[1723383004549,2.66314,2628.5,2627.9,4.93406]
[1723383004897,2.66361,2628.1,2627.5,4.93447]
[1723383005196,2.66338,2628.3,2627.6,2.74007497]
[1723383005197,5.32678,2628.3,2627.6,2.74007497]
[1723383005346,2.66338,2628.3,2627.6,0.07610497]
[1723383005556,2.66343,2628.2,2627.7,2.66391]
[1723383005863,2.66338,2628.3,2627.7,2.66391]
[1723383006787,2.66354,2628.1,2627.6,3.2410448]
[1723383007389,2.66338,2628.3,2627.6,3.2410448]
[1723383007555,2.66325,2628.4,2627.7,0.55114448]
[1723383007887,2.66332,2628.3,2627.7,0.55114448]
[1723383008282,2.66332,2628.3,2627.7,3.21504448]
[1723383008451,2.66332,2628.3,2627.7,0.55114448]
[1723383008452,2.66353,2628.1,2627.7,0.55114448]
[1723383008652,2.66353,2628.1,2627.6,0.5770448]
[1723383008653,2.66353,2628.1,2627.6,3.5770448]
[1723383008887,2.66334,2628.3,2627.5,2.2704]
[1723383009055,2.66377,2627.9,2627.5,2.2704]
[1723383009489,2.66377,2627.9,2627.3,2.66426]
[1723383009690,2.66377,2627.9,2627.5,1.902]
[1723383009897,2.3769,2628.3,2627.5,1.902]
[1723383010095,2.66402,2627.6,2627.5,1.902]
[1723383010891,5.32804,2627.6,2627.5,1.902]
[1723383011101,5.93745458,2627.6,2627.5,1.902]
[1723383012891,10.97837458,2627.6,2627.5,1.902]
[1723383013092,11.52837458,2627.6,2627.5,1.902]
[1723383014491,8.86435458,2627.6,2627.5,1.902]
[1723383015479,5.93745458,2627.6,2627.5,1.902]
[1723383015679,5.93745458,2627.6,2627.5,1.94900365]
[1723383016213,5.04076,2627.8,2627.5,1.94900365]
[1723383016509,2.66398,2627.7,2627.5,1.94900365]
[1723383016796,2.66353,2628.1,2627.6,0.04306479]
[1723383017003,2.3769,2628.4,2627.6,0.04306479]
[1723383017004,2.66334,2628.3,2627.7,2.66387]
[1723383017171,9.95569857,2628.4,2627.6,3.24406971]
[1723383017364,9.95569857,2628.4,2627.9,2.66369]
[1723383017365,7.29242857,2628.4,2627.9,2.66369]
[1723383017710,2.66277,2628.9,2628.3,2.66326]
[1723383017995,2.66277,2628.9,2628.4,0.04625827]
[1723383018201,2.3769,2629.1,2628.4,0.04625827]
[1723383018202,2.66267,2629.0,2628.4,0.04625827]
[1723383018386,2.3769,2629.1,2628.5,2.66305]
[1723383018596,9.95467857,2629.4,2628.5,2.66305]
[1723383018597,9.95467857,2629.4,2628.8,2.66279]
[1723383018779,9.95467857,2629.4,2628.7,2.6629]
[1723383019104,9.95467857,2629.4,2628.2,0.0760787]
[1723383019105,2.66271,2628.9,2628.8,0.05551709]
[1723383019478,2.66271,2628.9,2628.1,5.66348]
[1723383019479,2.66262,2629.0,2628.3,2.6633]
[1723383019677,22.5314,2630.2,2628.8,2.66274]
[1723383019678,2.3769,2630.0,2628.8,2.66274]
[1723383019971,2.3769,2630.0,2628.5,2.2605]
[1723383019972,2.66225,2629.4,2628.6,2.73900327]
[1723383020177,2.3769,2630.0,2628.8,2.66272]
[1723383020507,2.66199,2629.7,2629.0,2.66257]
[1723383020713,2.3769,2630.0,2629.0,2.66257]
[1723383020996,2.3769,2630.0,2628.9,0.07607318]
[1723383020997,2.66217,2629.5,2628.9,0.07607318]
[1723383021171,2.66223,2629.4,2628.6,3.18953333]
[1723383021373,2.66236,2629.3,2628.6,3.2607389]
[1723383021582,2.66268,2629.0,2628.6,0.07120557]
[1723383021892,2.66245,2629.2,2628.5,4.92359]
[1723383022079,2.66245,2629.2,2628.6,2.663]
[1723383022404,2.66226,2629.4,2628.8,2.6628]
[1723383022561,2.66203,2629.6,2628.8,2.6628]
[1723383022562,2.66203,2629.6,2628.8,2.73882321]
[1723383022768,2.66212,2629.5,2628.8,2.73882321]
[1723383023022,2.66212,2629.5,2628.8,3.32823553]
[1723383023167,2.66195,2629.7,2628.8,0.07607321]
[1723383023370,0.23769,2629.9,2629.2,2.6624]
[1723383023576,3.23769,2629.9,2629.2,2.6624]
[1723383023811,3.23769,2629.9,2629.0,2.66253]
[1723383024119,5.89942,2629.9,2629.2,2.66235]
[1723383024266,5.89942,2629.9,2629.3,2.6623]
[1723383024475,5.32271,2630.3,2629.6,2.66193]
[1723383024701,2.6617,2629.9,2629.4,2.66213]
[1723383024884,5.32347,2629.9,2629.2,2.66231]
[1723383025089,2.66179,2629.8,2629.1,2.2605]
[1723383025377,5.0204,2630.1,2628.8,3.0]
[1723383025378,2.6622,2629.4,2628.8,5.66274]
[1723383025612,2.6622,2629.4,2628.8,2.66274]
[1723383025809,5.02041,2630.1,2629.0,2.66258]
[1723383025989,2.76086,2630.8,2629.0,5.1175]
[1723383025990,2.66206,2629.6,2629.0,5.1175]
[1723383026296,2.66172,2629.9,2628.8,5.32548]
[1723383026613,2.66216,2629.5,2628.8,2.66273]
[1723383026776,5.32451,2629.4,2628.8,2.66273]
[1723383026978,5.3241,2629.6,2628.9,2.6627]
[1723383027215,2.928032,2629.8,2629.1,2.6625]
[1723383027419,2.66201,2629.6,2628.9,5.32532]
[1723383027623,2.66201,2629.6,2629.0,2.66258]
[1723383027777,2.66144,2630.2,2629.5,2.66204]
[1723383028115,0.3,2630.1,2629.6,2.66194]
[1723383028310,0.3,2630.1,2629.7,2.66187]
[1723383028676,9.95335857,2630.7,2629.7,2.73791858]
[1723383028677,9.65132857,2630.7,2629.7,2.73791858]
[1723383028975,2.6614,2630.2,2629.5,2.66203]
[1723383029289,2.66165,2630.0,2629.1,2.4549]
[1723383029486,2.66165,2630.0,2629.4,2.66214]
[1723383029807,2.66112,2630.5,2629.2,2.90782]
[1723383029808,2.66177,2629.9,2629.2,2.90782]
[1723383030011,2.66177,2629.9,2629.3,3.0]
[1723383030331,2.66154,2630.1,2629.4,3.252972]
[1723383030479,2.66154,2630.1,2629.3,3.0]
[1723383030480,5.32266,2630.3,2629.6,2.66198]
[1723383030685,2.6615,2630.1,2629.5,2.6621]
[1723383030986,2.6615,2630.1,2629.6,2.66199]
[1723383031195,2.66148,2630.2,2629.6,2.66199]
[1723383031507,2.66152,2630.1,2629.3,3.836287]
[1723383031720,2.66162,2630.0,2629.5,2.66209]
[1723383031876,2.66162,2630.0,2629.4,2.66219]
[1723383032080,2.6617,2629.9,2629.3,6.498577]
[1723383032487,2.66152,2630.1,2629.5,2.66209]
[1723383032720,2.66152,2630.1,2629.5,2.66201]
[1723383033012,5.3227,2630.3,2629.7,2.66188]
[1723383033225,2.66116,2630.5,2629.7,2.66188]
[1723383033513,2.66141,2630.2,2629.7,2.4549]
[1723383033702,2.66138,2630.3,2629.7,5.11679]
[1723383033906,2.66138,2630.3,2629.7,7.77863]
[1723383034105,2.66138,2630.3,2629.8,0.07604323]
[1723383034430,2.66144,2630.2,2629.7,2.4549]
[1723383034726,2.66142,2630.2,2629.7,5.11679]
[1723383034893,5.32286,2630.2,2629.7,2.4549]
[1723383035103,2.66142,2630.2,2629.7,2.4549]
[1723383035430,2.66159,2630.0,2629.4,2.66214]
[1723383035588,2.66154,2630.1,2629.5,2.66205]
[1723383035797,5.32313,2630.1,2629.5,2.66205]
[1723383036123,2.6617,2629.9,2629.4,2.66214]
[1723383036333,2.6617,2629.9,2629.3,3.0]
[1723383036334,2.6617,2629.9,2629.3,2.6623]
[1723383036626,2.6617,2629.9,2629.4,2.66215]
[1723383037207,2.66185,2629.8,2629.2,5.57017]
[1723383037520,3.24987118,2630.0,2629.3,2.6623]
[1723383037729,5.02047,2630.1,2629.2,5.32469]
[1723383037730,2.66185,2629.8,2629.2,5.32469]
[1723383037881,2.66185,2629.8,2629.2,2.66234]
[1723383038078,2.66185,2629.8,2629.2,3.474064]
[1723383038313,2.66185,2629.8,2629.2,6.136404]
[1723383038498,2.66185,2629.8,2629.2,3.474064]
[1723383038692,2.66164,2630.0,2629.2,3.474064]
[1723383038693,2.6617,2629.9,2629.2,3.474064]
[1723383039121,2.6617,2629.9,2629.3,2.66225]
[1723383039420,2.6618,2629.8,2629.3,2.66225]
[1723383039811,2.66164,2630.0,2629.4,2.6622]
[1723383040012,2.66164,2630.0,2629.5,2.4549]
[1723383040325,2.66159,2630.0,2629.5,5.11699]
[1723383041017,2.66159,2630.0,2629.5,2.4549]
[1723383041321,2.66185,2629.8,2629.2,2.66234]
[1723383041489,5.32373,2629.8,2629.2,2.66234]
[1723383041687,5.32373,2629.8,2629.1,2.4549]
[1723383041688,2.66211,2629.5,2629.1,2.4549]
[1723383041915,2.66187,2629.8,2628.8,2.66275]
[1723383042157,5.32468,2629.3,2628.7,5.11781]
[1723383042318,2.66231,2629.3,2628.7,5.11781]
[1723383042494,2.3589,2629.5,2628.6,2.663]
[1723383042690,5.32477,2629.3,2628.7,2.6629]
[1723383042891,2.66197,2629.7,2629.1,2.66245]
[1723383043198,15.31283857,2630.1,2629.1,2.66244]
[1723383043425,2.66179,2629.8,2629.1,2.66244]
[1723383043791,2.6619,2629.7,2629.1,2.66244]
[1723383044334,2.66201,2629.6,2629.0,2.4549]
[1723383044502,2.928211,2629.6,2629.0,5.11746]
[1723383044711,2.66201,2629.6,2629.0,7.78002]
[1723383045013,0.55,2630.0,2629.0,2.4549]
[1723383045188,9.65132857,2630.1,2629.3,2.66225]
[1723383045392,3.92679286,2630.0,2629.4,2.66213]
[1723383045735,2.66185,2629.8,2629.3,2.66225]
[1723383046026,2.66185,2629.8,2629.3,2.66228]
[1723383046807,2.66185,2629.8,2629.2,2.66231]
[1723383047134,3.92674286,2630.0,2629.3,2.66223]
[1723383047349,2.66188,2629.8,2629.2,3.440345]
[1723383047504,2.6619,2629.7,2629.2,2.66238]
[1723383047827,2.6619,2629.7,2629.2,2.66235]
[1723383047999,2.66181,2629.8,2629.2,5.3247]
[1723383048199,0.99541286,2629.9,2629.3,2.73835388]
[1723383048419,3.65716286,2629.9,2629.3,2.6623]
[1723383048616,3.65716286,2629.9,2629.4,2.66219]
[1723383049430,12.61553857,2630.1,2629.5,5.11648]
[1723383049944,9.95397857,2630.1,2629.5,5.11647]
[1723383050130,7.29242857,2630.1,2629.6,2.66195]
[1723383050333,7.29242857,2630.1,2629.7,2.66188]
[1723383050531,2.66144,2630.2,2629.7,2.66188]
[1723383052045,2.6615,2630.1,2629.5,2.4544]
[1723383052250,2.6617,2629.9,2629.3,5.32448]
[1723383052448,2.6617,2629.9,2629.4,2.66218]
[1723383053448,5.32309,2630.1,2629.4,2.66218]
[1723383053755,2.66145,2630.2,2629.6,2.66193]
[1723383053963,22.43136,2630.3,2629.7,0.07604974]
[1723383053964,2.66136,2630.3,2629.7,0.07604974]
[1723383054248,2.66142,2630.2,2629.6,5.11639]
[1723383054424,3.65673886,2630.3,2629.7,0.07604395]
[1723383054621,3.65673886,2630.3,2629.8,2.66179]
[1723383054952,3.65673886,2630.3,2629.8,2.73783244]
[1723383055256,0.99537886,2630.3,2629.9,2.66169]
[1723383055547,9.95358857,2630.5,2630.0,2.66158]
[1723383055757,2.66125,2630.4,2629.8,2.6617]
[1723383055927,9.95358857,2630.5,2629.9,2.66168]
[1723383056109,2.66121,2630.4,2629.9,2.66168]
[1723383056314,12.61477857,2630.5,2629.9,2.66168]
[1723383056672,2.66119,2630.4,2629.9,2.66168]
[1723383057054,5.32244,2630.4,2629.7,5.32368]
[1723383057212,2.6613,2630.3,2629.7,5.32368]
[1723383057574,3.65655186,2630.4,2629.8,2.66177]
[1723383057715,2.66119,2630.4,2629.9,2.66168]
[1723383057916,9.95351857,2630.5,2629.9,2.66168]
[1723383058328,9.95351857,2630.5,2629.9,2.66164]
[1723383058657,2.66109,2630.5,2629.9,5.32329]
[1723383058944,2.66109,2630.5,2630.0,2.66152]
[1723383059152,2.66109,2630.5,2629.9,2.66164]
[1723383059153,3.193289,2630.5,2629.9,2.66164]
[1723383059329,5.32226,2630.5,2629.9,2.66164]
[1723383059531,2.66119,2630.4,2629.9,2.66164]
[1723383060353,2.66155,2630.1,2629.6,2.662]
[1723383060524,2.8704,2630.0,2628.7,2.4544]
[1723383060725,2.3204,2629.8,2628.7,2.4544]
[1723383060953,0.55,2629.7,2628.4,2.4544]
[1723383061127,2.66312,2628.5,2628.1,2.4544]
[1723383061324,4.98293,2629.1,2627.6,2.4544]
[1723383061325,2.66333,2628.3,2627.6,2.4544]
[1723383061564,2.66314,2628.5,2627.7,3.0995]
[1723383061758,2.66324,2628.4,2627.7,5.76336]
[1723383061937,2.66314,2628.5,2627.7,5.76336]
[1723383061938,2.66334,2628.3,2627.7,3.0995]
[1723383062126,2.66334,2628.3,2627.7,0.43564]
[1723383062127,2.66342,2628.2,2627.7,0.43564]
[1723383062329,2.66358,2628.1,2627.6,2.4544]
[1723383062542,2.66363,2628.0,2627.6,2.4544]
[1723383062751,2.66358,2628.1,2627.6,2.4544]
[1723383063150,5.32717,2628.1,2627.6,2.4544]
[1723383063363,2.66358,2628.1,2627.6,2.4544]
[1723383063565,5.818693,2629.0,2628.0,2.66353]
[1723383063774,2.66291,2628.7,2628.0,2.66353]
[1723383063949,2.66291,2628.7,2628.1,2.4544]
[1723383064138,2.66275,2628.9,2628.2,2.66338]
[1723383064337,2.66307,2628.6,2628.1,2.4544]
[1723383064702,2.66298,2628.7,2628.1,2.4544]
[1723383064850,4.98264,2629.4,2628.2,5.40280083]
[1723383065169,4.98264,2629.4,2628.1,2.4544]
[1723383065170,2.66298,2628.7,2628.1,2.4544]
[1723383065345,2.66298,2628.7,2628.2,0.511793]
[1723383065540,2.66298,2628.7,2628.1,2.4544]
[1723383065541,2.66307,2628.6,2628.1,2.4544]
[1723383065755,2.66312,2628.5,2628.0,2.66353]
[1723383066441,2.66298,2628.7,2628.0,2.66353]
[1723383066639,2.66271,2628.9,2628.1,0.266353]
[1723383066843,2.66254,2629.1,2628.2,0.07608444]
[1723383067029,10.29242857,2629.3,2628.3,2.3853]
[1723383067030,2.66271,2628.9,2628.3,2.3853]
[1723383067231,2.66287,2628.8,2628.3,2.3853]
[1723383067469,2.6629,2628.8,2628.3,3.156513]
[1723383067775,2.66276,2628.9,2628.3,3.156513]
[1723383068083,2.66276,2628.9,2628.3,5.819763]
[1723383068371,2.66276,2628.9,2628.3,3.156513]
[1723383068581,2.66287,2628.8,2628.3,3.156513]
[1723383068788,2.66276,2628.9,2628.3,3.156513]
[1723383068940,2.66255,2629.1,2628.4,0.3156513]
[1723383069145,7.29242857,2629.3,2628.7,2.66283]
[1723383069364,5.32434,2629.5,2628.8,2.929033]
[1723383069569,5.32434,2629.5,2628.8,0.266283]
[1723383069570,2.66216,2629.5,2628.8,0.266283]
[1723383069748,2.6624,2629.3,2628.7,2.66282]
[1723383069947,2.66251,2629.1,2628.5,2.66303]
[1723383070281,2.66251,2629.1,2628.5,3.46575313]
[1723383070442,2.66233,2629.3,2628.5,3.46575313]
[1723383070790,2.66256,2629.1,2628.5,6.12880313]
[1723383070942,2.66256,2629.1,2628.6,0.63043241]
[1723383071458,2.66256,2629.1,2628.5,2.66303]
[1723383071853,2.66267,2629.0,2628.3,5.04852]
[1723383072083,2.66267,2629.0,2628.4,2.66314]
[1723383072459,2.66237,2629.3,2628.5,2.66309]
[1723383072683,2.66252,2629.1,2628.5,6.097261]
[1723383072868,2.66237,2629.3,2628.6,0.07607401]
[1723383073074,2.66245,2629.2,2628.6,3.09005151]
[1723383073260,2.66233,2629.3,2628.7,2.66282]
[1723383073673,2.6624,2629.2,2628.6,3.09005151]
[1723383073885,2.6624,2629.2,2628.6,3.0139775]
[1723383074250,2.66293,2628.7,2628.0,5.04886]
[1723383074589,2.4881,2629.1,2628.0,2.3853]
[1723383074590,2.66313,2628.5,2628.0,2.3853]
[1723383074887,2.66313,2628.5,2628.0,5.0489]
[1723383075051,2.66295,2628.7,2628.0,5.820109]
[1723383075249,2.66295,2628.7,2628.2,2.66339]
[1723383075480,2.66273,2628.9,2628.3,2.66331]
[1723383076050,9.95509857,2629.0,2628.4,2.66314]
[1723383076387,2.66283,2628.8,2628.3,2.66331]
[1723383076690,9.95509857,2629.0,2628.5,2.66311]
[1723383076691,9.95508857,2629.0,2628.5,2.66311]
[1723383076862,7.29242857,2629.0,2628.7,2.66291]
[1723383077068,19.77,2629.5,2628.7,2.66291]
[1723383077381,19.77,2629.5,2628.7,2.66286]
[1723383077382,2.66235,2629.3,2628.7,2.66286]
[1723383077688,2.66235,2629.3,2628.7,2.929126]
[1723383077983,2.66235,2629.3,2628.7,5.66805453]
[1723383078159,19.77,2629.5,2628.9,2.66263]
[1723383078361,22.4321,2629.5,2629.0,0.07606697]
[1723383078987,22.4321,2629.5,2628.9,0.07606534]
[1723383079177,22.43214,2629.5,2628.9,2.73876534]
[1723383079365,25.09433,2629.5,2628.9,2.73876534]
[1723383079741,2.66197,2629.7,2628.9,2.46136534]
[1723383079988,2.66197,2629.7,2629.1,2.6625]
[1723383079989,5.32391,2629.7,2629.1,2.6625]
[1723383080159,2.66197,2629.7,2629.0,2.90863653]
[1723383080368,2.66228,2629.4,2628.9,2.3853]
[1723383080558,2.4881,2629.7,2628.6,5.04823]
[1723383080765,2.4881,2629.7,2628.8,2.66275]
[1723383080766,2.6621,2629.5,2628.8,2.66275]
[1723383080974,2.6621,2629.5,2628.9,2.66265]
[1723383081159,2.6621,2629.5,2629.0,0.07606217]
[1723383081363,2.6621,2629.5,2628.9,2.66265]
[1723383081687,2.66201,2629.6,2629.0,2.73861218]
[1723383081893,5.32407,2629.6,2629.0,2.66255]
[1723383082191,2.66201,2629.6,2629.0,2.66255]
[1723383082398,2.66201,2629.6,2629.1,2.46136218]
[1723383082691,2.66201,2629.6,2629.1,2.3853]
[1723383082894,2.6619,2629.7,2629.1,5.04778]
[1723383083091,2.66183,2629.8,2629.2,2.73843581]
[1723383083296,7.29242857,2629.9,2629.2,2.66238]
[1723383083505,9.95417857,2629.9,2629.3,2.66229]
[1723383083893,9.95417857,2629.9,2629.3,2.66224]
[1723383084093,7.29242857,2629.9,2629.4,2.66219]
[1723383084398,7.29242857,2629.9,2629.4,2.66213]
[1723383084687,2.66191,2629.7,2629.3,0.83521143]
[1723383084890,2.662,2629.6,2629.1,2.95138023]
[1723383085103,5.32374,2629.8,2629.1,5.04775]
[1723383085301,5.32374,2629.8,2629.2,2.6624]
[1723383085597,2.66191,2629.7,2629.2,2.6624]
[1723383085914,2.6621,2629.5,2629.1,2.3853]
[1723383086209,2.66251,2629.1,2628.6,2.66294]
[1723383086501,2.66245,2629.2,2628.7,3.0]
[1723383086713,2.66227,2629.4,2628.8,2.66279]
[1723383086714,2.66232,2629.3,2628.8,2.66279]
[1723383087241,2.6622,2629.4,2628.8,2.66275]
[1723383087508,2.6622,2629.4,2628.7,3.0]
[1723383087509,7.29242857,2629.7,2629.0,5.05325]
[1723383087810,2.66201,2629.6,2629.1,2.66245]
[1723383088011,2.6616,2630.0,2629.4,2.66219]
[1723383088185,2.66206,2629.6,2629.0,2.3907]
[1723383088703,2.66202,2629.6,2629.1,2.66243]
[1723383088882,2.66192,2629.7,2629.0,2.3907]
[1723383089083,2.66166,2630.0,2629.3,2.66229]
[1723383089284,2.66155,2630.1,2629.6,2.3907]
[1723383089492,2.66155,2630.1,2629.6,2.46674704]
[1723383090005,2.66165,2630.0,2629.6,2.46674704]
[1723383090171,2.66155,2630.1,2629.6,2.3907]
[1723383090385,5.3231,2630.1,2629.6,2.46674454]
[1723383090605,9.69222857,2630.4,2629.6,2.3907]
[1723383090810,2.66151,2630.1,2629.6,5.0527]
[1723383091028,2.66151,2630.1,2629.7,0.07604454]
[1723383091387,2.66145,2630.2,2629.7,0.07604454]
[1723383091622,2.66159,2630.0,2629.6,2.3907]
[1723383091822,2.66151,2630.1,2629.6,2.3907]
[1723383092142,9.95366857,2630.4,2629.8,2.66179]
[1723383092292,9.95366857,2630.4,2629.9,0.07603832]
[1723383092934,12.61491857,2630.4,2629.9,0.07603832]
[1723383093115,9.95366857,2630.4,2629.9,0.07603832]
[1723383093494,2.66124,2630.4,2629.9,0.07603832]
[1723383093801,2.66106,2630.6,2630.0,7.71378]
[1723383094011,9.95325857,2630.8,2630.0,7.71378]
[1723383094012,2.66083,2630.8,2630.3,2.66128]
[1723383094223,2.66074,2630.9,2630.4,0.07602741]
[1723383094406,2.66067,2631.0,2630.4,2.73720741]
[1723383094595,2.66044,2631.2,2630.5,5.05174]
[1723383094796,2.66044,2631.2,2630.6,0.07601962]
[1723383095038,2.3998,2631.3,2630.6,0.07601962]
[1723383095223,2.3998,2631.1,2629.8,2.3907]
[1723383095540,2.6611,2630.5,2629.8,2.3907]
[1723383095738,2.6613,2630.3,2629.8,2.3907]
[1723383096031,2.66145,2630.2,2629.8,2.3907]
[1723383096327,2.66156,2630.1,2629.8,2.3907]
[1723383096541,2.66175,2629.9,2629.5,2.3907]
[1723383096828,0.23998,2630.5,2629.3,2.6622]
[1723383096829,2.66167,2630.0,2629.3,2.6622]
[1723383097015,5.32332,2630.0,2629.4,2.66218]
[1723383097218,2.6618,2629.8,2629.4,0.50529]
[1723383097397,2.6618,2629.8,2629.2,5.0531]
[1723383097793,5.32366,2629.8,2629.2,5.0531]
[1723383098031,2.66176,2629.9,2628.9,2.3907]
[1723383098253,2.6622,2629.4,2628.9,2.3907]
[1723383098559,2.66205,2629.6,2629.0,2.66257]
[1723383098713,0.23998,2630.0,2629.3,2.66223]
[1723383098714,2.6617,2629.9,2629.3,2.66223]
[1723383099233,5.32349,2629.9,2629.3,2.66223]
[1723383099555,0.23998,2630.0,2629.2,0.07605579]
[1723383099767,2.66191,2629.7,2628.9,5.05331]
[1723383100060,2.66231,2629.3,2628.9,2.3907]
[1723383100217,2.6619,2629.7,2628.9,2.3907]
[1723383100554,0.23998,2630.0,2629.2,2.66234]
[1723383100555,5.32366,2629.8,2629.2,2.66234]
[1723383100757,2.66181,2629.8,2629.2,2.66234]
[1723383101252,2.66181,2629.8,2629.3,2.7383058]
[1723383101436,2.66181,2629.8,2629.3,2.66225]
[1723383101637,2.6617,2629.9,2629.3,2.66225]
[1723383101854,2.66181,2629.8,2629.3,2.66225]
[1723383102152,2.66181,2629.8,2629.3,3.2503485]
[1723383102356,2.66166,2630.0,2629.3,3.2503485]
[1723383102357,2.66166,2630.0,2629.4,0.07605493]
[1723383102514,2.66146,2630.2,2629.5,2.662]
[1723383102712,2.66146,2630.2,2629.6,0.07604906]
[1723383102713,2.66155,2630.1,2629.6,0.07604906]
[1723383102949,2.66155,2630.1,2629.6,2.73801906]
[1723383103156,2.66158,2630.1,2629.6,0.07604906]
[1723383103344,3.193881,2630.1,2629.6,0.07604906]
[1723383103518,2.66162,2630.0,2629.6,0.07604906]
[1723383103865,3.193811,2630.1,2629.6,0.07604906]
[1723383104162,5.32295,2630.2,2629.6,2.73798906]
[1723383104367,2.66139,2630.2,2629.6,2.73798906]
[1723383104519,2.66149,2630.1,2629.6,2.73798906]
[1723383105040,5.3998,2630.4,2629.6,0.07604906]
[1723383105251,2.66155,2630.1,2629.6,2.73803906]
[1723383105648,3.95456086,2630.3,2629.4,2.3907]
[1723383105649,2.6618,2629.8,2629.4,2.3907]
[1723383106071,5.32334,2630.0,2629.4,5.0529]
[1723383106264,5.32332,2630.0,2629.4,5.558203]
[1723383106473,2.66174,2629.9,2629.4,5.558203]
[1723383106631,2.66174,2629.9,2629.4,2.896003]
[1723383106945,2.66185,2629.8,2629.4,2.896003]
[1723383107142,2.66185,2629.8,2629.4,2.3907]
[1723383107664,2.66208,2629.6,2629.1,2.4468]
[1723383107879,2.4001,2629.9,2628.8,2.66273]
[1723383107880,2.66227,2629.4,2628.8,5.10953]
[1723383108044,2.66227,2629.4,2628.9,3.0]
[1723383108365,2.66227,2629.4,2628.9,4.110953]
[1723383108875,2.66205,2629.6,2629.0,2.66255]
[1723383109172,2.66205,2629.6,2628.9,4.110953]
[1723383109328,5.32373,2629.8,2629.0,2.66254]
[1723383109529,5.32373,2629.8,2629.2,2.66239]
[1723383109530,2.66191,2629.7,2629.2,2.66239]
[1723383110779,2.66191,2629.7,2629.1,2.6625]
[1723383111064,2.66186,2629.8,2629.3,2.4468]
[1723383111372,2.66195,2629.7,2629.3,2.4468]
[1723383111734,3.69332086,2630.3,2629.3,2.4468]
[1723383111735,2.66166,2630.0,2629.3,2.4468]
[1723383112038,10.98574943,2630.3,2629.7,2.66185]
[1723383112039,9.95371857,2630.3,2629.7,2.66185]
[1723383112228,2.66126,2630.4,2629.8,2.73783223]
[1723383112429,2.66126,2630.4,2629.9,5.18452964]
[1723383112867,5.32211,2630.6,2630.0,2.66159]
[1723383113176,5.32211,2630.6,2629.9,2.52283964]
[1723383113177,2.66115,2630.5,2629.9,2.52283941]
[1723383113473,2.66115,2630.5,2629.9,5.18449941]
[1723383114075,2.66086,2630.8,2629.9,2.52283941]
[1723383114279,2.6609,2630.7,2630.1,2.66142]
[1723383114459,2.6609,2630.7,2630.2,2.66138]
[1723383114663,2.66078,2630.8,2630.3,2.66129]
[1723383114974,2.66071,2630.9,2630.3,2.73731765]
[1723383114975,2.6607,2630.9,2630.3,2.73731765]
[1723383115131,2.6607,2630.9,2630.3,5.39854765]
[1723383115334,2.6107,2630.9,2630.3,3.27711242]
[1723383115535,2.66054,2631.1,2630.5,2.66102]
[1723383115835,2.66054,2631.1,2630.6,0.07602007]
[1723383116074,2.66018,2631.4,2630.6,0.86050608]
[1723383116275,5.32045,2631.4,2630.8,2.66078]
[1723383116435,2.66018,2631.4,2630.9,0.0760117]
[1723383116633,5.32042,2631.4,2630.9,0.0760117]
[1723383116837,2.66018,2631.4,2630.9,0.0760117]
[1723383117568,2.66024,2631.4,2630.8,2.66071]
[1723383117775,2.66033,2631.3,2630.8,0.266071]
[1723383117946,2.66064,2631.0,2630.4,5.10793]